fUST/lending_fUST_20250310
["ID","MTS","AMOUNT","RATE_DAILY","PERIOD"]
[355783170,1741559438729,-500.0,0.00047123,120]
[355783171,1741559438741,-250.0,0.00047123,10]
[355783172,1741559438753,-565.0282,0.00047671,120]
[355783173,1741559438765,-500.0,0.00047671,120]
[355783174,1741559438777,-500.0,0.00047671,120]
[355783175,1741559438791,-999.0,0.00047671,120]
[355783176,1741559438809,-400.0,0.00047671,10]
[355783177,1741559438820,-500.0,0.00047873,10]
[355783178,1741559438831,-4845.16297209,0.0004789,4]
[355783179,1741559438842,-38830.64074109,0.000479,120]
[355783180,1741559438852,-1000.0,0.00048,30]
[355783181,1741559438863,-500.0,0.00048219,120]
[355783182,1741559438873,-500.0,0.00048219,120]
[355783183,1741559438886,-4845.16297209,0.00048388,4]
[355783184,1741559438897,-35756.54786724,0.00048398,120]
[355783185,1741559438911,-945.92,0.000484,2]
[355783186,1741559438922,-500.0,0.00048473,10]
[355783187,1741559438933,-352392.50022802,0.000485,120]
[355783188,1741559438944,-459.96,0.000485,30]
[355783189,1741559438955,-749.96762976,0.00048575,2]
[355783190,1741559438967,-500.0,0.00048767,120]
[355783191,1741559438978,-500.0,0.00048767,120]
[355783192,1741559438989,-160.0,0.00048831,3]
[355783193,1741559439000,-500.0,0.0004886,6]
[355783194,1741559439011,-500.0,0.00048997,6]
[355783195,1741559439022,-500.0,0.00049134,6]
[355783196,1741559439034,-500.0,0.00049271,6]
[355783197,1741559439045,-500.0,0.00049279,93]
[355783198,1741559439060,-153.4,0.000493,45]
[355783199,1741559439072,-153.4,0.000493,45]
[355783200,1741559439082,-153.4,0.000493,45]
[355783201,1741559439093,-153.4,0.000493,45]
[355783202,1741559439104,-153.4,0.000493,45]
[355783203,1741559439115,-153.4,0.000493,45]
[355783204,1741559439126,-153.4,0.000493,45]
[355783205,1741559439138,-500.0,0.00049315,120]
[355783206,1741559439148,-500.0,0.00049315,120]
[355783207,1741559439160,-500.0,0.00049379,97]
[355783208,1741559439171,-500.0,0.00049408,6]
[355783209,1741559439183,-500.0,0.00049479,90]
[355783210,1741559439194,-7412.37989384,0.000495,2]
[355783211,1741559439205,-529.16529002,0.00049573,10]
[355783212,1741559439218,-500.0,0.00049573,10]
[355783213,1741559439230,-500.0,0.00049573,10]
[355783214,1741559439241,-500.0,0.00049579,93]
[355783215,1741559439253,-33916.1408046,0.00049587,4]
[355783216,1741559439265,-403.10194664,0.00049587,4]
[355783217,1741559439277,-47472.75677792,0.00049597,30]
[355783218,1741559439288,-78894.93294437,0.00049597,30]
[355783219,1741559439299,-78894.93294437,0.00049597,30]
[355783220,1741559439310,-41842.21443634,0.00049597,30]
[355783221,1741559439322,-41842.21443634,0.00049597,30]
[355783222,1741559439332,-22950.71339036,0.00049597,30]
[355783223,1741559439344,-22950.71339036,0.00049597,30]
[355783224,1741559439355,-264.44,0.000496,30]
[355783225,1741559439517,-332.21,0.000496,30]
[355783226,1741559439528,-500.0,0.00049679,99]
[355783227,1741559439538,-500.0,0.00049779,92]
[355783228,1741559439549,-181.26151397,0.00049863,120]
[355783229,1741559439559,-500.0,0.00049863,120]
[355783230,1741559439569,-200.0,0.00049866,120]
[355783231,1741559439578,-500.0,0.00049879,95]
[355783232,1741559439588,-500.0,0.00049979,91]
[355783233,1741559439597,-1000.0,0.0005,2]
[355783234,1741559439607,-525.24050428,0.0005,10]
[355783235,1741559439616,-500.0,0.00050079,95]
[355783236,1741559439626,-1000.0,0.00050138,10]
[355783237,1741559439636,-1000.0,0.00050138,2]
[355783238,1741559439645,-398.0,0.00050173,2]
[355783239,1741559439655,-500.0,0.00050179,90]
[355783240,1741559439664,-459.96,0.000502,30]
[355783242,1741559439674,-500.0,0.00050279,95]
[355783244,1741559439684,-500.0,0.00050379,95]
[355783245,1741559439693,-500.0,0.00050409,120]
[355783246,1741559439703,-500.0,0.0005041,120]
[355783247,1741559439712,-500.0,0.00050479,95]
[355783248,1741559439722,-160.69,0.00050535,120]
[355783249,1741559439731,-200.0,0.00050541,120]
[355783250,1741559439741,-9875.79839133,0.00050549,2]
[355783251,1741559439751,-500.0,0.00050579,95]
[355783252,1741559439774,-53826.83420042,0.00050634,71]
[355783253,1741559439787,-4589.79782434,0.00050634,71]
[355783255,1741559439799,-1946.0,0.00050635,120]
[355783256,1741559439809,-1946.0,0.00050635,120]
[355783257,1741559439819,-1946.0,0.00050635,120]
[355783258,1741559439829,-1946.0,0.00050635,120]
[355783259,1741559439839,-1946.0,0.00050635,120]
[355783260,1741559439849,-1946.0,0.00050635,120]
[355783261,1741559439859,-1946.0,0.00050635,120]
[355783262,1741559439869,-1946.0,0.00050635,120]
[355783263,1741559439879,-1946.0,0.00050635,120]
[355783265,1741559439889,-1946.0,0.00050635,120]
[355783267,1741559439900,-1946.0,0.00050635,120]
[355783269,1741559439910,-1946.0,0.00050635,120]
[355783271,1741559439920,-1946.0,0.00050635,120]
[355783272,1741559439930,-1946.0,0.00050635,120]
[355783273,1741559439940,-1946.0,0.00050635,120]
[355783274,1741559439950,-1946.0,0.00050635,120]
[355783275,1741559439961,-1946.0,0.00050635,120]
[355783276,1741559439970,-1946.0,0.00050635,120]
[355783277,1741559439980,-1946.0,0.00050635,120]
[355783278,1741559439990,-1946.0,0.00050635,120]
[355783279,1741559440000,-1946.0,0.00050635,120]
[355783280,1741559440011,-559.896,0.00050635,120]
[355783281,1741559440021,-549.678,0.00050635,120]
[355783282,1741559440031,-540.0,0.00050635,120]
[355783283,1741559440042,-540.0,0.00050635,120]
[355783285,1741559440054,-540.0,0.00050635,120]
[355783287,1741559440064,-540.0,0.00050635,120]
[355783289,1741559440074,-540.0,0.00050635,120]
[355783291,1741559440084,-540.0,0.00050635,120]
[355783292,1741559440095,-540.0,0.00050635,120]
[355783293,1741559440105,-540.0,0.00050635,120]
[355783294,1741559440115,-540.0,0.00050635,120]
[355783296,1741559440124,-540.0,0.00050635,120]
[355783298,1741559440134,-540.0,0.00050635,120]
[355783299,1741559440144,-540.0,0.00050635,120]
[355783300,1741559440154,-540.0,0.00050635,120]
[355783301,1741559440164,-540.0,0.00050635,120]
[355783302,1741559440174,-540.0,0.00050635,120]
[355783303,1741559440184,-540.0,0.00050635,120]
[355783304,1741559440196,-540.0,0.00050635,120]
[355783305,1741559440206,-540.0,0.00050635,120]
[355783306,1741559440216,-540.0,0.00050635,120]
[355783307,1741559440229,-540.0,0.00050635,120]
[355783308,1741559440239,-2275.0,0.00050635,120]
[355783309,1741559440250,-2275.0,0.00050635,120]
[355783310,1741559440260,-2275.0,0.00050635,120]
[355783311,1741559440270,-2275.0,0.00050635,120]
[355783312,1741559440280,-2275.0,0.00050635,120]
[355783313,1741559440289,-2275.0,0.00050635,120]
[355783314,1741559440301,-2275.0,0.00050635,120]
[355783315,1741559440311,-2275.0,0.00050635,120]
[355783316,1741559440320,-2275.0,0.00050635,120]
[355783317,1741559440330,-2275.0,0.00050635,120]
[355783318,1741559440340,-2275.0,0.00050635,120]
[355783319,1741559440350,-2275.0,0.00050635,120]
[355783320,1741559440360,-2275.0,0.00050635,120]
[355783321,1741559440370,-2275.0,0.00050635,120]
[355783322,1741559440380,-2275.0,0.00050635,120]
[355783323,1741559440390,-2275.0,0.00050635,120]
[355783324,1741559440401,-2275.0,0.00050635,120]
[355783325,1741559440412,-2275.0,0.00050635,120]
[355783326,1741559440423,-2275.0,0.00050635,120]
[355783327,1741559440434,-2275.0,0.00050635,120]
[355783328,1741559440444,-2275.0,0.00050635,120]
[355783329,1741559440455,-294.384,0.00050635,120]
[355783330,1741559440466,-505.73859896,0.00050635,30]
[355783331,1741559440478,-398.0,0.00050635,120]
[355783332,1741559440489,-398.0,0.00050635,120]
[355783333,1741559440499,-398.0,0.00050635,120]
[355783334,1741559440509,-398.0,0.00050635,120]
[355783335,1741559440519,-398.0,0.00050635,120]
[355783336,1741559440529,-398.0,0.00050635,120]
[355783337,1741559440538,-398.0,0.00050635,120]
[355783338,1741559440548,-398.0,0.00050635,120]
[355783339,1741559440561,-398.0,0.00050635,120]
[355783340,1741559440571,-398.0,0.00050635,120]
[355783341,1741559440581,-398.0,0.00050635,120]
[355783342,1741559440591,-398.0,0.00050635,120]
[355783343,1741559440601,-398.0,0.00050635,120]
[355783344,1741559440611,-398.0,0.00050635,120]
[355783345,1741559440621,-398.0,0.00050635,120]
[355783346,1741559440631,-398.0,0.00050635,120]
[355783347,1741559440641,-320.863,0.00050635,120]
[355783348,1741559440650,-302181.70447601,0.00050635,120]
[355783349,1741559440660,-3059.24193276,0.00050635,2]
[355783350,1741559440670,-90369.49981546,0.00050635,2]
[355783351,1741559440680,-20000.0,0.00050635,2]
[355783352,1741559440690,-16694.9404185,0.00050635,2]
[355783353,1741559440701,-300.0,0.00050635,2]
[355783354,1741559440710,-802.65294468,0.00050635,2]
[355783355,1741559440720,-252.5710473,0.00050635,2]
[355783356,1741559440730,-294.29241611,0.00050635,2]
[355783357,1741559440739,-815.1177186,0.00050635,2]
[355783358,1741559440749,-1645.39797188,0.00050635,2]
[355783359,1741559440759,-47026.29337218,0.00050635,120]
[355783360,1741559440768,-324.16036051,0.00050635,2]
[355783361,1741559440778,-1198.84553071,0.00050635,2]
[355783362,1741559440787,-289.30521577,0.00050635,2]
[355783363,1741559440798,-18478.443388,0.00050635,2]
[355783364,1741559440817,-32775.50206016,0.00050635,2]
[355783365,1741559440827,-356.1720947,0.00050635,2]
[355783366,1741559440836,-4168.85741614,0.00050635,2]
[355783367,1741559440846,-155.08326601,0.00050635,2]
[355783368,1741559440855,-5515.885163,0.00050635,120]
[355783369,1741559440880,-969.62424761,0.00050635,120]
[355783370,1741559440937,-406.5,0.00050635,120]
[355783392,1741559443654,-3107.99058939,0.00050635,120]
[355783393,1741559443664,-2652.40139541,0.00050635,2]
[355783415,1741559445906,-2026.37,0.00050625,10]
[355783417,1741559445916,-308.62,0.00050625,30]
[355783418,1741559445926,-7562.13145404,0.00050635,2]
[355783419,1741559445936,-10000.0,0.00050635,2]
[355783420,1741559445947,-915.31737572,0.00050635,2]
[355783421,1741559445957,-6238.77462933,0.00050635,2]
[355783422,1741559445967,-156.19333066,0.00050635,2]
[355783423,1741559445976,-521.89703969,0.00050635,2]
[355783424,1741559445986,-270.2899235,0.00050635,90]
[355783425,1741559445997,-1699.67936245,0.00050635,2]
[355783426,1741559446007,-252.3569349,0.00050635,2]
[355783427,1741559446017,-442.21557901,0.00050635,2]
[355783428,1741559446027,-1852.96206136,0.00050635,2]
[355783429,1741559446037,-200.0,0.00050635,10]
[355783431,1741559446046,-13662.3663082,0.00050635,2]
[355783432,1741559446059,-503.28796906,0.00050635,2]
[355783433,1741559446068,-1858.76965717,0.00050635,2]
[355783434,1741559446078,-177.6389459,0.00050635,2]
[355783435,1741559446088,-464.08719402,0.00050635,2]
[355783436,1741559446098,-17261.97618871,0.00050635,20]
[355783437,1741559446109,-30200.09772035,0.00050635,3]
[355783438,1741559446119,-187.58932604,0.00050635,2]
[355783439,1741559446128,-94266.19994038,0.00050635,2]
[355783440,1741559446141,-5823.03998122,0.00050635,2]
[355783441,1741559446151,-1384.9033783,0.00050635,2]
[355783442,1741559446161,-300.60755403,0.00050635,2]
[355783443,1741559446171,-581.79732939,0.00050635,2]
[355783444,1741559446180,-5844.42764583,0.00050635,2]
[355783445,1741559446191,-17235.9780232,0.00050635,2]
[355783447,1741559505740,491.3199922,0.00035649,64]
[355783448,1741559535367,500.0,0.00033,10]
[355783449,1741559535704,500.0,0.00033,10]
[355783450,1741559536069,500.0,0.00033,10]
[355783451,1741559536423,500.0,0.00033,10]
[355783452,1741559536876,500.0,0.0002802,2]
[355783453,1741559537111,500.0,0.0002802,2]
[355783454,1741559537445,633.50051788,0.0002802,2]
[355783455,1741559539556,500.0,0.00033,10]
[355783456,1741559544188,500.0,0.00033,10]
[355783457,1741559546497,500.0,0.00033,10]
[355783458,1741559546867,500.0,0.00033,10]
[355783459,1741559547294,500.0,0.0002802,2]
[355783460,1741559548207,810.18003644,0.0002802,2]
[355783461,1741559584546,150.0,0.00022082,5]
[355783462,1741559790444,-328.10745192,0.000359,7]
[355783463,1741559856035,-177.5996812,0.00033,10]
[355783464,1741559943749,-350.0,0.000252,2]
[355783465,1741559943980,150.0,0.0002208,5]
[355783466,1741559944340,212.0,0.0002208,5]
[355783467,1741559944951,268.0,0.0002208,5]
[355783468,1741559945090,413.0,0.0002208,5]
[355783469,1741559945299,-150.0,0.000252,2]
[355783470,1741559945492,424.0,0.0002208,5]
[355783471,1741559945907,655.0,0.0002208,5]
[355783472,1741560005110,1950.0,0.0003,10]
[355783474,1741560012712,-183.742672,0.000252,2]
[355783475,1741560041769,476.92987911,0.0003,10]
[355783476,1741560063081,-143.35643309,0.000252,2]
[355783477,1741560063105,-206.64356691,0.00028417,2]
[355783478,1741560068012,-150.0,0.00028417,2]
[355783479,1741560124977,150.0,0.00022082,5]
[355783480,1741560125185,-313.46713121,0.00028417,2]
[355783481,1741560125211,-36.53286879,0.00029838,2]
[355783482,1741560125335,156.0,0.00022082,5]
[355783483,1741560125735,313.0,0.00022082,5]
[355783484,1741560126058,625.0,0.00022082,5]
[355783485,1741560126435,1251.0,0.00022082,5]
[355783486,1741560127266,1580.0,0.00022082,5]
[355783487,1741560128087,2435.0,0.00022082,5]
[355783488,1741560128535,2502.0,0.00022082,5]
[355783489,1741560128945,3865.0,0.00022082,5]
[355783490,1741560133165,-150.0,0.00033,10]
[355783491,1741560245188,-300.0,0.00028019,2]
[355783492,1741560246782,-171.35,0.0002802,2]
[355783493,1741560246807,-28.65,0.0002802,2]
[355783494,1741560290363,-500.0,0.0002802,2]
[355783495,1741560304565,150.0,0.00022082,5]
[355783496,1741560304904,194.0,0.00022082,5]
[355783497,1741560305253,245.0,0.00022082,5]
[355783498,1741560305782,377.0,0.00022082,5]
[355783499,1741560306155,387.0,0.00022082,5]
[355783500,1741560306587,598.0,0.00022082,5]
[355783501,1741560354695,-500.0,0.00027433,2]
[355783504,1741560380194,157.307952,0.00028027,61]
[355783505,1741560380409,157.307952,0.00028027,120]
[355783506,1741560389038,-354.5218125,0.00027433,2]
[355783507,1741560389061,-145.4781875,0.00027919,2]
[355783508,1741560394237,-176.27227906,0.00027919,2]
[355783509,1741560424291,-173.72772094,0.00027918,2]
[355783510,1741560460150,-150.0,0.00026943,2]
[355783511,1741560509403,-500.0,0.00026764,2]
[355783512,1741560543367,-300.0,0.00026468,2]
[355783513,1741560545115,-200.0,0.00026469,2]
[355783514,1741560554319,-171.81497251,0.00026469,2]
[355783515,1741560605141,-300.0,0.0002643,2]
[355783516,1741560607442,-200.0,0.00026431,2]
[355783591,1741560633628,-1621.62578696,0.00026431,2]
[355783592,1741560633640,-406.0,0.00026431,2]
[355783593,1741560633657,-4812.48978763,0.00026431,2]
[355783594,1741560633699,-5958.04022891,0.00026431,2]
[355783595,1741560633708,-2137.091695,0.00026469,2]
[355783604,1741560638397,-195.5275059,0.00026216,2]
[355783605,1741560638407,-225.23,0.0002646,2]
[355783606,1741560638416,-225.23,0.0002646,2]
[355783607,1741560638425,-127.01060152,0.0002646,2]
[355783608,1741560638437,-98.21939848,0.0002646,2]
[355783609,1741560638447,-225.23,0.0002646,2]
[355783610,1741560638456,-225.23,0.0002646,2]
[355783611,1741560638465,-225.23,0.0002646,2]
[355783612,1741560638474,-225.23,0.0002646,2]
[355783613,1741560638484,-225.23,0.0002646,2]
[355783614,1741560638494,-225.23,0.0002646,2]
[355783615,1741560638503,-225.23,0.0002646,2]
[355783616,1741560638513,-225.23,0.00026463,2]
[355783617,1741560638522,-225.23,0.00026463,2]
[355783618,1741560638532,-225.23,0.00026463,2]
[355783619,1741560638541,-225.23,0.00026463,2]
[355783620,1741560638550,-225.23,0.00026463,2]
[355783621,1741560638560,-225.23,0.00026463,2]
[355783622,1741560638570,-500.0,0.00026468,2]
[355783623,1741560638579,-500.0,0.00026468,2]
[355783624,1741560638589,-559.01870309,0.00026468,2]
[355783625,1741560638602,-500.0,0.00026468,2]
[355783626,1741560638613,-500.0,0.00026468,2]
[355783627,1741560638623,-500.0,0.00026468,2]
[355783628,1741560638632,-559.01870309,0.00026468,2]
[355783629,1741560638643,-500.0,0.00026468,2]
[355783630,1741560638653,-500.0,0.00026468,2]
[355783631,1741560638662,-500.0,0.00026468,2]
[355783632,1741560638671,-500.0,0.00026468,2]
[355783633,1741560638682,-500.0,0.00026468,2]
[355783634,1741560638691,-500.0,0.00026468,2]
[355783635,1741560638701,-559.01870309,0.00026468,2]
[355783636,1741560638710,-500.0,0.00026468,2]
[355783637,1741560638720,-500.0,0.00026468,2]
[355783638,1741560638730,-500.0,0.00026468,2]
[355783639,1741560638740,-559.01870309,0.00026468,2]
[355783640,1741560638750,-500.0,0.00026468,2]
[355783641,1741560638759,-500.0,0.00026468,2]
[355783642,1741560638769,-500.0,0.00026468,2]
[355783643,1741560638779,-559.01870309,0.00026468,2]
[355783644,1741560638788,-500.0,0.00026468,2]
[355783645,1741560638798,-500.0,0.00026468,2]
[355783646,1741560638807,-500.0,0.00026468,2]
[355783647,1741560638817,-559.01870309,0.00026468,2]
[355783648,1741560638827,-500.0,0.00026468,2]
[355783649,1741560638836,-500.0,0.00026468,2]
[355783650,1741560638846,-500.0,0.00026468,2]
[355783651,1741560638855,-559.01870309,0.00026468,2]
[355783652,1741560638865,-500.0,0.00026468,2]
[355783653,1741560638874,-500.0,0.00026468,2]
[355783654,1741560638884,-559.01870309,0.00026468,2]
[355783655,1741560638894,-500.0,0.00026468,2]
[355783656,1741560638903,-500.0,0.00026468,2]
[355783657,1741560638913,-500.0,0.00026468,2]
[355783658,1741560638922,-635.5127399,0.00026468,2]
[355783659,1741560638932,-559.01870309,0.00026468,2]
[355783660,1741560638941,-500.0,0.00026468,2]
[355783661,1741560638951,-559.01870309,0.00026468,2]
[355783662,1741560638960,-500.0,0.00026468,2]
[355783663,1741560638969,-500.0,0.00026468,2]
[355783664,1741560638979,-500.0,0.00026468,2]
[355783665,1741560638988,-500.0,0.00026468,2]
[355783666,1741560638998,-500.0,0.00026468,2]
[355783667,1741560639007,-559.01870309,0.00026468,2]
[355783668,1741560639017,-500.0,0.00026468,2]
[355783669,1741560639026,-500.0,0.00026468,2]
[355783670,1741560639035,-500.0,0.00026468,2]
[355783671,1741560639045,-559.01870309,0.00026468,2]
[355783672,1741560639055,-500.0,0.00026468,2]
[355783673,1741560639064,-500.0,0.00026468,2]
[355783674,1741560639073,-500.0,0.00026468,2]
[355783675,1741560639083,-559.01870309,0.00026468,2]
[355783676,1741560639092,-500.0,0.00026468,2]
[355783677,1741560639101,-500.0,0.00026468,2]
[355783678,1741560639111,-500.0,0.00026468,2]
[355783679,1741560639120,-500.0,0.00026468,2]
[355783680,1741560639129,-559.01870309,0.00026468,2]
[355783681,1741560639139,-500.0,0.00026468,2]
[355783682,1741560639148,-389.02098653,0.00026468,2]
[355783683,1741560639157,-500.0,0.00026468,2]
[355783684,1741560639166,-559.01870309,0.00026468,2]
[355783685,1741560639176,-500.0,0.00026468,2]
[355783686,1741560639185,-500.0,0.00026468,2]
[355783687,1741560639194,-559.01870309,0.00026468,2]
[355783688,1741560639203,-412.30827089,0.00026468,2]
[355783689,1741560639212,-500.0,0.00026468,2]
[355783690,1741560639221,-559.01870309,0.00026468,2]
[355783691,1741560639231,-500.0,0.00026468,2]
[355783692,1741560639240,-500.0,0.00026468,2]
[355783693,1741560639249,-559.01870309,0.00026468,2]
[355783694,1741560639258,-500.0,0.00026468,2]
[355783695,1741560639268,-500.0,0.00026468,2]
[355783696,1741560639277,-559.01870309,0.00026468,2]
[355783697,1741560639286,-500.0,0.00026468,2]
[355783698,1741560639296,-500.0,0.00026468,2]
[355783699,1741560639305,-559.01870309,0.00026468,2]
[355783700,1741560639315,-559.01870309,0.00026468,2]
[355783701,1741560639325,-559.01870309,0.00026468,2]
[355783702,1741560639335,-500.0,0.00026468,2]
[355783703,1741560639345,-559.01870309,0.00026468,2]
[355783704,1741560639355,-559.01870309,0.00026468,2]
[355783705,1741560639364,-559.01870309,0.00026468,2]
[355783706,1741560639374,-559.01870309,0.00026468,2]
[355783707,1741560639383,-559.01870309,0.00026468,2]
[355783708,1741560639394,-559.01870309,0.00026468,2]
[355783709,1741560639406,-559.01870309,0.00026468,2]
[355783710,1741560639415,-559.01870309,0.00026468,2]
[355783711,1741560639424,-559.01870309,0.00026468,2]
[355783712,1741560639434,-559.01870309,0.00026468,2]
[355783713,1741560639565,-559.01870309,0.00026468,2]
[355783714,1741560639575,-559.01870309,0.00026468,2]
[355783715,1741560639585,-559.01870309,0.00026468,2]
[355783716,1741560639596,-559.01870309,0.00026468,2]
[355783717,1741560639609,-559.01870309,0.00026468,2]
[355783718,1741560639619,-559.01870309,0.00026468,2]
[355783719,1741560639630,-559.01870309,0.00026468,2]
[355783720,1741560639640,-559.01870309,0.00026468,2]
[355783721,1741560639652,-559.01870309,0.00026468,2]
[355783722,1741560639662,-559.01870309,0.00026468,2]
[355783723,1741560639672,-559.01870309,0.00026468,2]
[355783724,1741560639684,-559.01870309,0.00026468,2]
[355783725,1741560639694,-559.01870309,0.00026468,2]
[355783726,1741560639704,-559.01870309,0.00026468,2]
[355783727,1741560639714,-559.01870309,0.00026468,2]
[355783728,1741560639724,-559.01870309,0.00026468,2]
[355783729,1741560639734,-559.01870309,0.00026468,2]
[355783730,1741560639743,-559.01870309,0.00026468,2]
[355783731,1741560639753,-559.01870309,0.00026468,2]
[355783732,1741560639762,-559.01870309,0.00026468,2]
[355783733,1741560639772,-559.01870309,0.00026468,2]
[355783734,1741560639781,-559.01870309,0.00026468,2]
[355783735,1741560639791,-559.01870309,0.00026468,2]
[355783736,1741560639801,-559.01870309,0.00026468,2]
[355783737,1741560639810,-559.01870309,0.00026468,2]
[355783738,1741560639820,-22391.09333249,0.00026469,2]
[355783739,1741560639830,-500.0,0.00026473,2]
[355783740,1741560639839,-500.0,0.00026473,2]
[355783741,1741560639848,-500.0,0.00026473,2]
[355783742,1741560639858,-457.80892651,0.00026473,2]
[355783743,1741560639867,-267.43373459,0.00026473,2]
[355783744,1741560639876,-500.0,0.00026473,2]
[355783745,1741560639886,-500.0,0.00026473,2]
[355783746,1741560639896,-500.0,0.00026473,2]
[355783747,1741560639906,-500.0,0.00026473,2]
[355783748,1741560639915,-501.17988011,0.00026473,2]
[355783749,1741560639925,-500.0,0.00026473,2]
[355783750,1741560639934,-500.0,0.00026473,2]
[355783751,1741560639943,-360.2453854,0.00026473,2]
[355783752,1741560639953,-189.71984016,0.00026473,2]
[355783753,1741560639962,-500.0,0.00026473,2]
[355783754,1741560639971,-615.48093937,0.00026473,2]
[355783755,1741560639981,-500.0,0.00026473,2]
[355783756,1741560639990,-225.23,0.00026753,2]
[355783757,1741560639999,-225.23,0.00026753,2]
[355783758,1741560640009,-225.23,0.00026754,2]
[355783759,1741560640018,-225.23,0.00026754,2]
[355783760,1741560640028,-500.0,0.00026763,2]
[355783761,1741560640037,-500.0,0.00026763,2]
[355783762,1741560640046,-176.27227906,0.00026763,2]
[355783763,1741560640056,-500.0,0.00026763,2]
[355783764,1741560640065,-500.0,0.00026763,2]
[355783765,1741560640075,-500.0,0.00026763,2]
[355783766,1741560640085,-319.40945337,0.00026763,2]
[355783767,1741560640094,-500.0,0.00026763,2]
[355783768,1741560640103,-500.0,0.00026763,2]
[355783769,1741560640113,-500.0,0.00026763,2]
[355783770,1741560640122,-500.0,0.00026763,2]
[355783771,1741560640132,-500.0,0.00026763,2]
[355783772,1741560640142,-510.30194263,0.00026763,2]
[355783773,1741560640152,-500.0,0.00026763,2]
[355783774,1741560640161,-500.0,0.00026763,2]
[355783775,1741560640171,-500.0,0.00026763,2]
[355783776,1741560640180,-7903.4615145,0.00026764,2]
[355783777,1741560640190,-2299.17627791,0.000269,4]
[355783778,1741560640200,-3181.5861328,0.00026943,2]
[355783779,1741560640209,-500.0,0.00027397,2]
[355783780,1741560640219,-500.0,0.00027397,2]
[355783782,1741560640228,-500.0,0.00027397,2]
[355783784,1741560640238,-500.0,0.00027397,2]
[355783786,1741560640247,-500.0,0.00027397,2]
[355783788,1741560640257,-500.0,0.00027397,2]
[355783789,1741560640267,-500.0,0.00027397,2]
[355783790,1741560640276,-500.0,0.00027397,2]
[355783791,1741560640286,-500.0,0.00027397,2]
[355783792,1741560640296,-500.0,0.00027397,2]
[355783793,1741560640305,-500.0,0.00027397,2]
[355783794,1741560640315,-500.0,0.00027397,2]
[355783795,1741560640324,-500.0,0.00027397,2]
[355783796,1741560640334,-500.0,0.00027397,2]
[355783797,1741560640345,-500.0,0.00027397,2]
[355783798,1741560640354,-500.0,0.00027397,2]
[355783799,1741560640364,-500.0,0.00027397,2]
[355783800,1741560640373,-500.0,0.00027397,2]
[355783801,1741560640382,-500.0,0.00027397,2]
[355783802,1741560640392,-500.0,0.00027397,2]
[355783803,1741560640403,-500.0,0.00027397,2]
[355783804,1741560640412,-500.0,0.00027397,2]
[355783805,1741560640422,-500.0,0.00027397,2]
[355783806,1741560640431,-256.01344954,0.00027397,2]
[355783807,1741560640442,-500.0,0.00027397,2]
[355783808,1741560640451,-500.0,0.00027397,2]
[355783809,1741560640462,-500.0,0.00027397,2]
[355783810,1741560640472,-500.0,0.00027397,2]
[355783811,1741560640482,-500.0,0.00027397,2]
[355783812,1741560640493,-500.0,0.00027397,2]
[355783813,1741560640503,-500.0,0.00027397,2]
[355783814,1741560640513,-500.0,0.00027397,2]
[355783815,1741560640522,-166.66666667,0.00027818,2]
[355783816,1741560640532,-190.23728722,0.00027818,2]